lending/lending_fUSD_20250121
["ID","MTS","AMOUNT","RATE_DAILY","PERIOD"]
[349844622,1737457856808,-500.0,0.0002,2]
[349844623,1737457856818,-573.02,0.0002,2]
[349844624,1737457856827,-500.0,0.0002,2]
[349844625,1737457856838,-500.0,0.0002,2]
[349844626,1737457856847,-500.0,0.0002,2]
[349844627,1737457856857,-500.0,0.0002,2]
[349844628,1737457856867,-561.94,0.0002,2]
[349844629,1737457856878,-500.0,0.0002,2]
[349844630,1737457856888,-500.0,0.0002,2]
[349844631,1737457856900,-500.0,0.0002,2]
[349844632,1737457856910,-539.23,0.0002,2]
[349844633,1737457856919,-500.0,0.0002,2]
[349844634,1737457856929,-500.0,0.0002,2]
[349844635,1737457856939,-500.0,0.0002,2]
[349844636,1737457856948,-938.77,0.0002,2]
[349844637,1737457856958,-500.0,0.0002,2]
[349844638,1737457856968,-500.0,0.0002,2]
[349844639,1737457856977,-1482.95,0.0002,2]
[349844640,1737457856986,-692.78,0.0002,2]
[349844641,1737457856995,-500.0,0.0002,2]
[349844642,1737457857005,-500.0,0.0002,2]
[349844643,1737457857015,-500.0,0.0002,2]
[349844644,1737457857024,-500.0,0.0002,2]
[349844645,1737457857033,-638.54,0.0002,2]
[349844646,1737457857042,-500.0,0.0002,2]
[349844647,1737457857051,-500.0,0.0002,2]
[349844648,1737457857060,-1164.13,0.0002,2]
[349844649,1737457857069,-500.0,0.0002,2]
[349844650,1737457857078,-2001.08,0.0002,2]
[349844651,1737457857087,-500.0,0.0002,2]
[349844652,1737457857097,-508.46381252,0.0002,2]
[349844653,1737457857106,-644.1,0.0002,2]
[349844654,1737457857116,-1288.2,0.0002,2]
[349844655,1737457857126,-500.0,0.0002,2]
[349844656,1737457857135,-500.0,0.0002,2]
[349844657,1737457857145,-755.39,0.0002,2]
[349844658,1737457857156,-3006.28,0.0002,2]
[349844660,1737457857166,-1295.2,0.0002,2]
[349844661,1737457857175,-6903.3831826,0.00020019,2]
[349844662,1737457857184,-533.07,0.00020089,2]
[349844663,1737457857194,-250.0,0.00020126,2]
[349844664,1737457857203,-519.08,0.00020162,30]
[349844665,1737457857215,-500.0,0.00020272,2]
[349844666,1737457857225,-999.0,0.00020272,2]
[349844667,1737457857234,-500.0,0.00020273,2]
[349844668,1737457857243,-500.0,0.00020273,2]
[349844669,1737457857252,-500.0,0.00020273,2]
[349844670,1737457857262,-500.0,0.00020273,2]
[349844671,1737457857271,-500.0,0.00020273,2]
[349844672,1737457857281,-500.0,0.00020273,2]
[349844673,1737457857291,-457.64470966,0.00020273,2]
[349844674,1737457857346,-500.0,0.00020273,2]
[349844675,1737457857356,-500.0,0.00020273,2]
[349844676,1737457857365,-300.0,0.00020273,2]
[349844677,1737457857374,-500.0,0.00020273,2]
[349844678,1737457857383,-500.0,0.00020273,2]
[349844679,1737457857393,-500.0,0.00020273,2]
[349844680,1737457857404,-500.0,0.00020273,2]
[349844681,1737457857413,-500.0,0.00020273,2]
[349844682,1737457857422,-579.69,0.00020273,2]
[349844683,1737457857431,-500.0,0.00020273,2]
[349844684,1737457857441,-647.31,0.00020273,2]
[349844685,1737457857451,-500.0,0.00020273,2]
[349844686,1737457857460,-500.0,0.00020273,2]
[349844687,1737457857469,-500.0,0.00020273,2]
[349844688,1737457857478,-500.0,0.00020273,2]
[349844689,1737457857487,-500.0,0.00020273,2]
[349844690,1737457857496,-500.0,0.00020273,2]
[349844691,1737457857506,-500.0,0.00020273,2]
[349844692,1737457857515,-500.0,0.00020273,2]
[349844693,1737457857524,-500.0,0.00020273,2]
[349844694,1737457857534,-500.0,0.00020273,2]
[349844695,1737457857543,-641.99,0.00020273,2]
[349844696,1737457857553,-500.0,0.00020273,2]
[349844697,1737457857563,-500.0,0.00020273,2]
[349844698,1737457857572,-653.54,0.00020273,2]
[349844699,1737457857582,-500.0,0.00020273,2]
[349844700,1737457857591,-500.0,0.00020273,2]
[349844701,1737457857601,-500.0,0.00020273,2]
[349844702,1737457857610,-411.89283566,0.00020273,2]
[349844703,1737457857620,-500.0,0.00020273,2]
[349844704,1737457857629,-919.0,0.00020273,2]
[349844705,1737457857639,-500.0,0.00020273,2]
[349844706,1737457857649,-591.59561968,0.00020273,2]
[349844707,1737457857658,-500.0,0.00020273,2]
[349844708,1737457857668,-500.0,0.00020273,2]
[349844709,1737457857677,-500.0,0.00020273,2]
[349844710,1737457857686,-500.0,0.00020273,2]
[349844711,1737457857696,-500.0,0.00020273,2]
[349844712,1737457857705,-500.0,0.00020273,2]
[349844713,1737457857714,-500.0,0.00020273,2]
[349844714,1737457857724,-500.0,0.00020273,2]
[349844715,1737457857733,-500.0,0.00020273,2]
[349844716,1737457857742,-500.0,0.00020273,2]
[349844717,1737457857751,-500.0,0.00020273,2]
[349844718,1737457857761,-500.0,0.00020273,2]
[349844719,1737457857770,-500.0,0.00020273,2]
[349844720,1737457857780,-500.0,0.00020273,2]
[349844721,1737457857789,-500.0,0.00020273,2]
[349844722,1737457857798,-500.0,0.00020273,2]
[349844723,1737457857807,-500.0,0.00020273,2]
[349844724,1737457857816,-500.0,0.00020273,2]
[349844725,1737457857826,-500.0,0.00020273,2]
[349844726,1737457857835,-500.0,0.00020273,2]
[349844727,1737457857845,-500.0,0.00020273,2]
[349844728,1737457857854,-500.0,0.00020273,2]
[349844729,1737457857863,-500.0,0.00020273,2]
[349844730,1737457857872,-519.93679604,0.00020273,2]
[349844731,1737457857881,-659.66,0.00020273,2]
[349844732,1737457857890,-500.0,0.00020273,2]
[349844733,1737457857899,-500.0,0.00020273,2]
[349844734,1737457857909,-500.0,0.00020273,2]
[349844735,1737457857918,-500.0,0.00020273,2]
[349844737,1737457857927,-500.0,0.00020273,2]
[349844738,1737457857936,-611.94,0.00020273,2]
[349844739,1737457857945,-500.0,0.00020273,2]
[349844740,1737457857954,-500.0,0.00020273,2]
[349844741,1737457857963,-500.0,0.00020273,2]
[349844742,1737457857972,-500.0,0.00020273,2]
[349844743,1737457857981,-500.0,0.00020273,2]
[349844744,1737457857991,-500.0,0.00020273,2]
[349844745,1737457858000,-500.0,0.00020273,2]
[349844746,1737457858009,-483.22,0.00020273,2]
[349844747,1737457858018,-500.0,0.00020273,2]
[349844748,1737457858027,-500.0,0.00020273,2]
[349844749,1737457858036,-500.0,0.00020273,2]
[349844750,1737457858045,-500.0,0.00020273,2]
[349844751,1737457858054,-500.0,0.00020273,2]
[349844752,1737457858063,-500.0,0.00020273,2]
[349844753,1737457858073,-500.0,0.00020273,2]
[349844754,1737457858082,-500.0,0.00020273,2]
[349844755,1737457858091,-500.0,0.00020273,2]
[349844756,1737457858100,-500.0,0.00020273,2]
[349844757,1737457858109,-500.0,0.00020273,2]
[349844758,1737457858120,-500.0,0.00020273,2]
[349844759,1737457858129,-500.0,0.00020273,2]
[349844760,1737457858138,-500.0,0.00020273,2]
[349844761,1737457858149,-500.0,0.00020273,2]
[349844762,1737457858158,-511.17,0.00020273,2]
[349844763,1737457858168,-519.18,0.00020273,2]
[349844764,1737457858178,-327.46,0.00020273,2]
[349844765,1737457858187,-500.0,0.00020273,2]
[349844766,1737457858198,-618.82,0.00020273,2]
[349844767,1737457858211,-505.6,0.00020273,2]
[349844768,1737457858220,-1136.43,0.00020273,2]
[349844769,1737457858229,-500.0,0.00020273,2]
[349844770,1737457858238,-500.0,0.00020273,2]
[349844771,1737457858248,-500.0,0.00020273,2]
[349844772,1737457858257,-500.0,0.00020273,2]
[349844773,1737457858266,-283.88268342,0.00020273,2]
[349844774,1737457858277,-518.94,0.00020273,2]
[349844775,1737457858286,-500.0,0.00020273,2]
[349844776,1737457858295,-500.0,0.00020273,2]
[349844777,1737457858304,-500.0,0.00020273,2]
[349844778,1737457858314,-500.0,0.00020273,2]
[349844779,1737457858323,-500.0,0.00020273,2]
[349844780,1737457858333,-500.0,0.00020273,2]
[349844781,1737457858342,-500.0,0.00020273,2]
[349844782,1737457858352,-673.79,0.00020273,2]
[349844783,1737457858362,-183.36478677,0.00020273,2]
[349844784,1737457858371,-500.0,0.00020273,2]
[349844785,1737457858380,-500.0,0.00020273,2]
[349844786,1737457858391,-256.41441985,0.00020273,2]
[349844787,1737457858402,-663.28,0.00020273,2]
[349844788,1737457858411,-522.95,0.00020273,2]
[349844789,1737457858420,-383.248718,0.00020273,2]
[349844790,1737457858430,-675.8,0.00020273,2]
[349844791,1737457858440,-507.43,0.00020273,2]
[349844792,1737457858449,-467.60505682,0.00020273,2]
[349844793,1737457858458,-661.82,0.00020273,2]
[349844794,1737457858467,-1670.22,0.00020273,2]
[349844795,1737457858476,-649.18,0.00020273,2]
[349844796,1737457858486,-500.0,0.00020273,2]
[349844797,1737457858495,-1246.53,0.00020273,2]
[349844798,1737457858505,-500.0,0.00020273,2]
[349844799,1737457858514,-500.0,0.00020273,2]
[349844800,1737457858524,-662.59,0.00020273,2]
[349844801,1737457858533,-712.45,0.00020273,2]
[349844802,1737457858543,-2017.73,0.00020273,2]
[349844803,1737457858552,-500.0,0.00020273,2]
[349844804,1737457858561,-1214.83,0.00020273,2]
[349844805,1737457858571,-610.63,0.00020273,2]
[349844806,1737457858581,-964.91,0.00020273,2]
[349844807,1737457858590,-524.92,0.00020273,2]
[349844808,1737457858600,-500.0,0.00020273,2]
[349844809,1737457858610,-500.0,0.00020273,2]
[349844810,1737457858620,-500.0,0.00020273,2]
[349844811,1737457858629,-500.0,0.00020273,2]
[349844812,1737457858639,-615.19,0.00020273,2]
[349844813,1737457858649,-1365.53,0.00020273,2]
[349844814,1737457858659,-500.0,0.00020273,2]
[349844815,1737457858669,-973.38,0.00020273,2]
[349844816,1737457858684,-500.0,0.00020273,2]
[349844817,1737457858694,-500.0,0.00020273,2]
[349844819,1737457858703,-668.31,0.00020273,2]
[349844820,1737457858712,-2048.3,0.00020273,2]
[349844821,1737457858721,-1972.95,0.00020273,2]
[349844822,1737457858731,-500.0,0.00020273,2]
[349844823,1737457858740,-500.0,0.00020273,2]
[349844824,1737457858750,-1104.67,0.00020273,2]
[349844825,1737457858760,-693.41,0.00020273,2]
[349844826,1737457858769,-1043.27,0.00020273,2]
[349844827,1737457858778,-599.11,0.00020273,2]
[349844828,1737457858788,-500.0,0.00020273,2]
[349844829,1737457858798,-500.0,0.00020273,2]
[349844830,1737457858807,-1277.45,0.00020273,2]
[349844831,1737457858817,-544.1,0.00020273,2]
[349844832,1737457858826,-2199.24,0.00020273,2]
[349844833,1737457858836,-500.0,0.00020273,2]
[349844834,1737457858845,-578.82,0.00020273,2]
[349844835,1737457858855,-500.0,0.00020273,2]
[349844836,1737457858865,-678.07,0.00020273,2]
[349844837,1737457858875,-962.95,0.00020273,2]
[349844838,1737457858884,-500.0,0.00020273,2]
[349844839,1737457858893,-500.0,0.00020273,2]
[349844840,1737457858903,-500.0,0.00020273,2]
[349844841,1737457858913,-694.91,0.00020273,2]
[349844842,1737457858922,-500.0,0.00020273,2]
[349844843,1737457858931,-802.36,0.00020273,2]
[349844844,1737457858941,-500.0,0.00020273,2]
[349844845,1737457858950,-1780.11,0.00020273,2]
[349844846,1737457858960,-2223.58,0.00020273,2]
[349844847,1737457858969,-636.41,0.00020273,2]
[349844848,1737457858979,-500.0,0.00020273,2]
[349844849,1737457858988,-1478.14,0.00020273,2]
[349844850,1737457858998,-500.0,0.00020273,2]
[349844851,1737457859008,-801.87,0.00020273,2]
[349844852,1737457859018,-500.0,0.00020273,2]
[349844853,1737457859028,-1731.85,0.00020273,2]
[349844854,1737457859038,-573.87970364,0.00020273,2]
[349844855,1737457859048,-500.0,0.00020273,2]
[349844856,1737457859058,-747.66,0.00020273,2]
[349844857,1737457859068,-500.0,0.00020273,2]
[349844858,1737457859078,-561.73,0.00020273,2]
[349844859,1737457859088,-500.0,0.00020273,2]
[349844860,1737457859097,-553.33,0.00020273,2]
[349844861,1737457859106,-500.0,0.00020273,2]
[349844862,1737457859117,-1161.08,0.00020273,2]
[349844863,1737457859127,-500.0,0.00020273,2]
[349844864,1737457859138,-500.0,0.00020273,2]
[349844865,1737457859148,-500.0,0.00020273,2]
[349844866,1737457859161,-573.02,0.00020273,2]
[349844867,1737457859172,-500.0,0.00020273,2]
[349844868,1737457859182,-500.0,0.00020273,2]
[349844869,1737457859193,-500.0,0.00020273,2]
[349844870,1737457859204,-549.86,0.00020273,2]
[349844871,1737457859216,-561.94,0.00020273,2]
[349844872,1737457859227,-500.0,0.00020273,2]
[349844873,1737457859238,-500.0,0.00020273,2]
[349844874,1737457859249,-500.0,0.00020273,2]
[349844875,1737457859260,-539.23,0.00020273,2]
[349844876,1737457859270,-500.0,0.00020273,2]
[349844877,1737457859280,-500.0,0.00020273,2]
[349844878,1737457859293,-500.0,0.00020273,2]
[349844879,1737457859304,-938.77,0.00020273,2]
[349844880,1737457859314,-500.0,0.00020273,2]
[349844881,1737457859324,-500.0,0.00020273,2]
[349844882,1737457859336,-1482.95,0.00020273,2]
[349844883,1737457859346,-692.78,0.00020273,2]
[349844884,1737457859357,-500.0,0.00020273,2]
[349844885,1737457859366,-500.0,0.00020273,2]
[349844886,1737457859376,-500.0,0.00020273,2]
[349844887,1737457859386,-500.0,0.00020273,2]
[349844888,1737457859396,-638.54,0.00020273,2]
[349844889,1737457859408,-500.0,0.00020273,2]
[349844890,1737457859418,-500.0,0.00020273,2]
[349844891,1737457859428,-1164.13,0.00020273,2]
[349844892,1737457859438,-500.0,0.00020273,2]
[349844893,1737457859447,-2001.08,0.00020273,2]
[349844894,1737457859457,-500.0,0.00020273,2]
[349844895,1737457859467,-644.1,0.00020273,2]
[349844896,1737457859478,-1288.2,0.00020273,2]
[349844898,1737457859487,-500.0,0.00020273,2]
[349844899,1737457859499,-500.0,0.00020273,2]
[349844900,1737457859509,-755.39,0.00020273,2]
[349844901,1737457859519,-3006.28,0.00020273,2]
[349844902,1737457859528,-1295.2,0.00020273,2]
[349844903,1737457859538,-1386.67098503,0.00020277,2]
[349844904,1737457859547,-1084.5,0.00020284,2]
[349844905,1737457859557,-1000.61388067,0.00020321,2]
[349844906,1737457859566,-300.0,0.00020331,2]
[349844907,1737457859576,-6903.3831826,0.00020332,2]
[349844908,1737457859585,-398.86,0.00020356,2]
[349844909,1737457859595,-150.0,0.00020356,2]
[349844910,1737457859605,-150.0,0.00020356,2]
[349844911,1737457859615,-240.04,0.00020412,2]
[349844912,1737457859624,-2046.0,0.000205,2]
[349844913,1737457859634,-500.0,0.00020546,2]
[349844914,1737457859643,-500.0,0.00020547,2]
[349844915,1737457859654,-500.0,0.00020547,2]
[349844916,1737457859664,-500.0,0.00020547,2]
[349844917,1737457859674,-500.0,0.00020547,2]
[349844918,1737457859683,-500.0,0.00020547,2]
[349844919,1737457859693,-645.32590661,0.00020547,2]
[349844920,1737457859703,-500.0,0.00020547,2]
[349844921,1737457859712,-300.0,0.00020547,2]
[349844922,1737457859722,-500.0,0.00020547,2]
[349844923,1737457859732,-500.0,0.00020547,2]
[349844924,1737457859742,-500.0,0.00020547,2]
[349844925,1737457859751,-500.0,0.00020547,2]
[349844926,1737457859761,-500.0,0.00020547,2]
[349844927,1737457859771,-579.69,0.00020547,2]
[349844928,1737457859780,-500.0,0.00020547,2]
[349844929,1737457859789,-647.31,0.00020547,2]
[349844930,1737457859799,-500.0,0.00020547,2]
[349844931,1737457859809,-500.0,0.00020547,2]
[349844932,1737457859818,-500.0,0.00020547,2]
[349844933,1737457859828,-500.0,0.00020547,2]
[349844934,1737457859838,-469.63140513,0.00020547,2]
[349844935,1737457859847,-318.180489,0.00020547,2]
[349844936,1737457859857,-543.55,0.00020547,2]
[349844937,1737457859867,-500.0,0.00020547,2]
[349844938,1737457859876,-500.0,0.00020547,2]
[349844939,1737457859886,-500.0,0.00020547,2]
[349844940,1737457859895,-641.99,0.00020547,2]
[349844941,1737457859906,-500.0,0.00020547,2]
[349844942,1737457859916,-518.4578454,0.00020547,2]
[349844943,1737457859926,-653.54,0.00020547,2]
[349844944,1737457859936,-500.0,0.00020547,2]
[349844945,1737457859945,-500.0,0.00020547,2]
[349844946,1737457859955,-500.0,0.00020547,2]
[349844947,1737457859965,-567.64766315,0.00020547,2]
[349844948,1737457859974,-919.0,0.00020547,2]
[349844949,1737457859983,-500.0,0.00020547,2]
[349844950,1737457859992,-500.0,0.00020547,2]
[349844951,1737457860003,-500.0,0.00020547,2]
[349844952,1737457860012,-500.0,0.00020547,2]
[349844953,1737457860022,-500.0,0.00020547,2]
[349844954,1737457860032,-512.13213624,0.00020547,2]
[349844955,1737457860042,-569.97997013,0.00020547,2]
[349844956,1737457860052,-500.0,0.00020547,2]
[349844957,1737457860062,-500.0,0.00020547,2]
[349844958,1737457860072,-500.0,0.00020547,2]
[349844959,1737457860082,-474.66979137,0.00020547,2]
[349844960,1737457860092,-500.0,0.00020547,2]
[349844961,1737457860103,-500.0,0.00020547,2]
[349844962,1737457860116,-500.0,0.00020547,2]
[349844963,1737457860126,-500.0,0.00020547,2]
[349844964,1737457860136,-500.0,0.00020547,2]
[349844965,1737457860145,-500.0,0.00020547,2]
[349844966,1737457860159,-500.0,0.00020547,2]
[349844967,1737457860171,-163.2142227,0.00020547,2]
[349844968,1737457860181,-500.0,0.00020547,2]
[349844969,1737457860191,-528.70592296,0.00020547,2]
[349844970,1737457860202,-500.0,0.00020547,2]
[349844971,1737457860215,-500.0,0.00020547,2]
[349844972,1737457860225,-659.66,0.00020547,2]
[349844973,1737457860235,-500.0,0.00020547,2]
[349844974,1737457860246,-500.0,0.00020547,2]
[349844975,1737457860256,-615.76566039,0.00020547,2]
[349844976,1737457860265,-500.0,0.00020547,2]
[349844978,1737457860275,-500.0,0.00020547,2]
[349844979,1737457860287,-611.94,0.00020547,2]
[349844980,1737457860298,-500.0,0.00020547,2]
[349844981,1737457860308,-500.0,0.00020547,2]
[349844982,1737457860318,-500.0,0.00020547,2]
[349844983,1737457860328,-500.0,0.00020547,2]
[349844984,1737457860338,-500.0,0.00020547,2]
[349844985,1737457860347,-500.0,0.00020547,2]
[349844986,1737457860358,-500.0,0.00020547,2]
[349844987,1737457860368,-500.0,0.00020547,2]
[349844988,1737457860378,-480.34358757,0.00020547,2]
[349844989,1737457860388,-500.0,0.00020547,2]
[349844990,1737457860397,-500.0,0.00020547,2]
[349844991,1737457860410,-500.0,0.00020547,2]
[349844992,1737457860419,-500.0,0.00020547,2]
[349844993,1737457860429,-500.0,0.00020547,2]
[349844994,1737457860439,-500.0,0.00020547,2]
[349844995,1737457860449,-512.86236518,0.00020547,2]
[349844996,1737457860459,-500.0,0.00020547,2]
[349844997,1737457860468,-500.0,0.00020547,2]
[349844998,1737457860478,-500.0,0.00020547,2]
[349844999,1737457860487,-500.0,0.00020547,2]
[349845000,1737457860497,-391.6667374,0.00020547,2]
[349845001,1737457860506,-511.17,0.00020547,2]
[349845002,1737457860515,-519.18,0.00020547,2]
[349845003,1737457860525,-500.0,0.00020547,2]
[349845004,1737457860535,-505.6,0.00020547,2]
[349845005,1737457860545,-1136.43,0.00020547,2]
[349845006,1737457860554,-500.0,0.00020547,2]
[349845007,1737457860563,-500.0,0.00020547,2]
[349845008,1737457860573,-500.0,0.00020547,2]
[349845009,1737457860582,-500.0,0.00020547,2]
[349845010,1737457860592,-518.94,0.00020547,2]
[349845011,1737457860601,-638.74,0.00020547,2]
[349845012,1737457860610,-500.0,0.00020547,2]
[349845013,1737457860620,-500.0,0.00020547,2]
[349845014,1737457860630,-500.0,0.00020547,2]
[349845015,1737457860639,-500.0,0.00020547,2]
[349845016,1737457860648,-445.42149753,0.00020547,2]
[349845017,1737457860661,-673.79,0.00020547,2]
[349845018,1737457860671,-500.0,0.00020547,2]
[349845019,1737457860680,-500.0,0.00020547,2]
[349845020,1737457860690,-663.28,0.00020547,2]
[349845021,1737457860700,-522.95,0.00020547,2]
[349845022,1737457860710,-383.248718,0.00020547,2]
[349845023,1737457860719,-675.8,0.00020547,2]
[349845024,1737457860729,-507.43,0.00020547,2]
[349845025,1737457860738,-661.82,0.00020547,2]
[349845026,1737457860748,-1670.22,0.00020547,2]
[349845027,1737457860759,-649.18,0.00020547,2]
[349845028,1737457860768,-500.0,0.00020547,2]
[349845029,1737457860778,-1246.53,0.00020547,2]
[349845030,1737457860788,-352.98,0.00020547,2]
[349845031,1737457860798,-500.0,0.00020547,2]
[349845032,1737457860807,-662.59,0.00020547,2]
[349845033,1737457860816,-712.45,0.00020547,2]
[349845034,1737457860826,-2017.73,0.00020547,2]
[349845035,1737457860835,-500.0,0.00020547,2]
[349845036,1737457860845,-1214.83,0.00020547,2]
[349845037,1737457860855,-610.63,0.00020547,2]
[349845038,1737457860865,-964.91,0.00020547,2]
[349845039,1737457860875,-524.92,0.00020547,2]
[349845040,1737457860885,-500.0,0.00020547,2]
[349845041,1737457860896,-500.0,0.00020547,2]
[349845042,1737457860909,-500.0,0.00020547,2]
[349845043,1737457860920,-500.0,0.00020547,2]
[349845044,1737457860930,-615.19,0.00020547,2]
[349845045,1737457860940,-1324.67373623,0.00020547,2]
[349845112,1737457929554,151.25,0.00010137,2]
[349845116,1737458399301,50000.0,0.00022666,30]
[349845117,1737458403011,50000.0,0.00022666,31]
[349845118,1737458403777,308.0,0.00024,120]
[349845119,1737458404025,220.1701666,0.00024,120]
[349845120,1737458406500,50000.0,0.00022666,32]
[349845121,1737458410664,50000.0,0.00022666,33]
[349845122,1737458415342,50000.0,0.00022666,34]
[349845123,1737458703942,154.0,0.00024,120]
[349845124,1737458731342,159179.79476245,0.00024,120]
[349845125,1737458744636,1001.48344602,0.00022666,120]
[349845126,1737458880103,65177.8433645,0.0001,2]
[349845127,1737458901094,157.96,0.00010137,2]
[349845129,1737458912028,9914.07600007,0.00024,120]
[349845130,1737459003355,155.0,0.00024,120]
[349845157,1737459032046,-316.0,0.00011644,2]
[349845158,1737459032055,-500.75208374,0.00011973,2]
[349845159,1737459032064,-500.0,0.00011973,2]
[349845160,1737459032073,-300.0,0.00011999,2]
[349845161,1737459032082,-300.0,0.00011999,2]
[349845162,1737459032091,-211.68811523,0.00012,2]
[349845163,1737459032101,-909.86740824,0.00012,2]
[349845164,1737459032113,-1395.09553501,0.00012,2]
[349845165,1737459032134,-10375.365,0.00012,2]
[349845166,1737459032145,-310.999999,0.00012,2]
[349845167,1737459032228,-3167.68845071,0.00012,2]
[349845168,1737459032248,-2253.83004059,0.00012,2]
[349845169,1737459032279,-1185.50022,0.00012,2]
[349845170,1737459032299,-1980.12414371,0.00012,2]
[349845171,1737459032310,-1430.11950921,0.00012,2]
[349845172,1737459032332,-540.0,0.00012,2]
[349845173,1737459032344,-535.47,0.00012,2]
[349845174,1737459032355,-321.63580888,0.00012,2]
[349845175,1737459032392,-5226.49427502,0.00012,2]
[349845176,1737459032446,-295.49189213,0.00012,2]
[349845177,1737459032503,-41023.5228206,0.00012,2]
[349845178,1737459032515,-1453.12867589,0.00012,2]
[349845179,1737459032526,-2246.06338885,0.00012,2]
[349845180,1737459032537,-692.86,0.00012,2]
[349845181,1737459032548,-698.934,0.00012,2]
[349845182,1737459032564,-407.05943429,0.00012,2]
[349845338,1737459037939,-469.83225263,0.00012,2]
[349845339,1737459037997,-807619.52611609,0.00012,2]
[349845340,1737459038006,-177.18686469,0.00012029,2]
[349845341,1737459038015,-3451.6915913,0.00012129,2]
[349845342,1737459038024,-528.63429178,0.00012229,2]
[349845343,1737459038033,-173.6,0.00012329,2]
[349845344,1737459038042,-3451.6915913,0.00013053,2]
[349845345,1737459038051,-420.0,0.00013172,2]
[349845346,1737459038061,-3451.6915913,0.00013977,2]
[349845347,1737459038070,-587.0,0.0001446,2]
[349845348,1737459038079,-3451.6915913,0.00014901,2]
[349845349,1737459038090,-250.0,0.00015385,2]
[349845350,1737459038099,-3451.6915913,0.00015825,2]
[349845351,1737459038109,-823.0,0.00015874,2]
[349845352,1737459038120,-693.33549256,0.00016467,2]
[349845353,1737459038129,-971.1,0.00016667,2]
[349845354,1737459038139,-3451.6915913,0.0001675,2]
[349845355,1737459038148,-177.18686467,0.00016965,2]
[349845356,1737459038158,-528.63429177,0.00017065,2]
[349845357,1737459038167,-693.33549251,0.00017071,2]
[349845358,1737459038176,-340.61,0.00017076,2]
[349845359,1737459038186,-595.14,0.00017178,2]
[349845360,1737459038195,-232.94,0.00017341,2]
[349845361,1737459038205,-1152.0,0.00017426,2]
[349845362,1737459038214,-1000.0,0.0001764,2]
[349845363,1737459038223,-3451.6915913,0.00017674,2]
[349845364,1737459038233,-693.33549251,0.00017674,2]
[349845365,1737459038242,-8513.32,0.0001778,2]
[349845366,1737459038252,-177.77,0.00017917,2]
[349845367,1737459038262,-1860.09,0.00017928,2]
[349845368,1737459038271,-367.34055984,0.00018,2]
[349845369,1737459038281,-200.0,0.00018099,2]
[349845370,1737459038290,-232.94,0.00018208,2]
[349845371,1737459038300,-23900.0,0.00018246,2]
[349845372,1737459038309,-693.33549251,0.00018278,2]
[349845373,1737459038319,-2506.56,0.00018292,2]
[349845374,1737459038328,-402.5629136,0.00018312,2]
[349845375,1737459038338,-500.0,0.00018329,2]
[349845376,1737459038347,-250.0,0.00018338,2]
[349845377,1737459038356,-200.0,0.00018453,2]